bitfinex-derivatives/quotes_BNBF0:USTF0_20250221
["timestamp","ask_amount","ask_price","bid_price","bid_amount"]
[1740168559133,0.31157986,641.89,640.58,0.28624348]
[1740168559334,0.31157986,641.89,640.59,0.28624348]
[1740168559538,0.31157986,641.89,640.62,1.40620362]
[1740168559834,0.31157986,641.89,640.63,0.28624348]
[1740168560031,0.31157986,641.89,640.64,0.28624348]
[1740168560227,0.31157986,641.89,640.65,0.28624348]
[1740168560425,0.31157986,641.89,640.66,0.28621978]
[1740168560632,0.31157986,641.89,640.67,0.28621978]
[1740168560830,0.31157986,641.89,640.68,0.28621978]
[1740168561029,0.31157986,641.89,640.69,0.28621978]
[1740168561233,0.31157986,641.89,640.7,0.28621978]
[1740168561435,0.31157986,641.89,640.71,0.28621978]
[1740168561735,0.31157986,641.89,640.72,0.28621978]
[1740168561932,0.31157986,641.89,640.53,1.40620362]
[1740168561933,0.31157986,641.89,640.73,0.28620736]
[1740168562131,0.31157986,641.89,640.74,0.28620736]
[1740168562331,0.31157986,641.89,640.53,1.40620362]
[1740168562332,0.31157986,641.89,640.75,0.28620736]
[1740168562532,0.31157986,641.89,640.76,0.5983367]
[1740168562732,0.31157986,641.89,640.77,0.59833183]
[1740168562932,0.31157986,641.89,640.78,0.59832696]
[1740168563236,0.31157986,641.89,640.79,0.59832209]
[1740168563533,0.31157986,641.89,640.8,0.59832812]
[1740168563734,0.31157986,641.89,640.81,0.59832325]
[1740168563935,0.31157986,641.89,640.82,0.59831838]
[1740168564135,0.31157986,641.89,640.83,0.59831351]
[1740168564336,0.31157986,641.89,640.84,0.59830864]
[1740168564537,0.31157986,641.89,640.85,0.28621826]
[1740168564737,0.31157986,641.89,640.86,0.28621826]
[1740168564935,0.31157986,641.89,640.84,0.31209038]
[1740168564936,0.31157986,641.89,640.87,0.28621826]
[1740168565137,0.31157986,641.89,640.88,0.28622721]
[1740168565330,0.31157986,641.89,640.89,0.28622721]
[1740168565530,0.31157986,641.89,640.9,0.28622721]
[1740168565730,0.31157986,641.89,640.91,0.28622721]
[1740168566037,0.31157986,641.89,640.92,0.28622721]
[1740168566237,0.31157986,641.89,640.93,0.28622721]
[1740168566436,0.31157986,641.89,640.94,0.28622721]
[1740168566636,0.31157986,641.89,640.95,0.28622721]
[1740168566832,0.31157986,641.89,640.96,0.28622721]
[1740168567038,0.31157986,641.89,640.97,0.28622721]
[1740168567238,0.31157986,641.89,640.98,0.28622721]
[1740168567434,0.31157986,641.89,640.99,0.28622721]
[1740168567635,0.31157986,641.89,641.0,0.28622721]
[1740168567831,0.31157986,641.89,641.01,0.28622721]
[1740168568032,0.31157986,641.89,641.02,0.28622721]
[1740168568236,0.31157986,641.89,641.03,0.28622721]
[1740168568439,0.31157986,641.89,641.04,0.28622721]
[1740168568634,0.31157986,641.89,640.85,0.28622721]
[1740168568833,0.31157986,641.89,640.86,0.28622721]
[1740168569040,0.31157986,641.89,640.87,0.28622721]
[1740168569339,0.31157986,641.89,640.88,0.28622721]
[1740168569540,0.31157986,641.89,640.89,0.28622721]
[1740168569735,0.31157986,641.89,640.9,0.28631033]
[1740168569942,0.31157986,641.89,640.91,0.28631033]
[1740168570239,0.31157986,641.89,640.92,0.28631033]
[1740168570540,0.31157986,641.89,640.93,0.28631033]
[1740168570735,0.31157986,641.89,640.94,0.28631033]
[1740168570937,0.31157986,641.89,640.85,0.28631033]
[1740168571132,0.31157986,641.89,640.86,0.28631033]
[1740168571333,0.31157986,641.89,640.87,0.28629993]
[1740168571538,0.31157986,641.89,640.88,0.28629993]
[1740168571739,0.31157986,641.89,640.89,0.28629993]
[1740168571943,0.31157986,641.89,640.9,0.28629993]
[1740168572145,0.31157986,641.89,640.85,0.28629993]
[1740168572339,0.31157986,641.89,640.86,0.28629993]
[1740168572540,0.31157986,641.89,640.87,0.28629993]
[1740168572845,0.31157986,641.89,640.84,0.31209038]
[1740168573144,0.31157986,641.89,640.85,0.28628688]
[1740168573340,0.31157986,641.89,640.86,0.28628688]
[1740168573644,0.31157986,641.89,640.87,0.28628688]
[1740168573843,0.31157986,641.89,640.88,0.28628688]
[1740168574043,0.31157986,641.89,640.89,0.28628688]
[1740168574245,0.31157986,641.89,640.9,0.28628688]
[1740168574446,0.31157986,641.89,640.91,0.28628688]
[1740168574639,0.31157986,641.89,640.92,0.28628688]
[1740168574844,0.31157986,641.89,640.93,0.28628688]
[1740168575043,0.31157986,641.89,640.94,0.28628688]
[1740168575344,0.31157986,641.89,640.95,0.28628688]
[1740168575543,0.31157986,641.89,640.96,0.28628688]
[1740168575742,0.31157986,641.89,640.97,0.28628688]
[1740168575947,0.31157986,641.89,640.98,0.28628688]
[1740168576248,0.31157986,641.89,640.99,0.28628688]
[1740168576445,0.31157986,641.89,641.0,0.28628688]
[1740168576743,0.31157986,641.89,641.01,0.28628688]
[1740168576946,0.31157986,641.89,641.02,0.28628688]
[1740168577150,0.31157986,641.89,641.03,0.28628688]
[1740168577349,0.31157986,641.89,641.04,0.28628688]
[1740168577642,0.31157986,641.89,641.05,0.28628688]
[1740168577841,0.31157986,641.89,641.06,0.28628688]
[1740168578042,0.31157986,641.89,641.07,0.28628688]
[1740168578243,0.31157986,641.89,641.08,0.28628688]
[1740168578447,0.31157986,641.89,641.09,0.28628688]
[1740168578647,0.31157986,641.89,640.84,0.31209038]
[1740168578648,0.31157986,641.89,641.1,0.28628688]
[1740168578841,0.31157986,641.89,641.11,0.28628688]
[1740168579041,0.31157986,641.89,640.85,0.28628688]
[1740168579242,0.31157986,641.89,640.86,0.28628688]
[1740168579447,0.31157986,641.89,640.87,0.28628688]
[1740168579648,0.31157986,641.89,640.88,0.28628688]
[1740168579844,0.31157986,641.89,640.89,0.28628688]
[1740168580039,0.31157986,641.89,640.9,0.28628688]
[1740168580240,0.31157986,641.89,640.91,0.28628688]
[1740168580447,0.31157986,641.89,640.92,0.28628688]
[1740168580648,0.31157986,641.89,640.93,0.28628688]
[1740168580847,0.31157986,641.89,640.94,0.28628688]
[1740168581148,0.31157986,641.89,640.84,0.31209038]
[1740168581149,0.31157986,641.89,640.95,0.28628688]
[1740168581348,0.31157986,641.89,640.96,0.28628688]
[1740168581547,0.31157986,641.89,640.97,0.28628688]
[1740168581742,0.31157986,641.89,640.98,0.28628688]
[1740168582048,0.31157986,641.89,640.99,0.28628688]
[1740168582243,0.31157986,641.89,640.84,0.31209038]
[1740168582450,0.31157986,641.89,640.85,0.28626648]
[1740168582649,0.31157986,641.89,640.86,0.28626648]
[1740168582850,0.31157986,641.89,640.87,0.28626648]
[1740168583053,0.31157986,641.89,640.88,0.28626648]
[1740168583348,0.31157986,641.89,640.89,0.28626648]
[1740168583546,0.31157986,641.89,640.9,0.28626648]
[1740168583750,0.31157986,641.89,640.89,1.209]
[1740168583946,0.31157986,641.89,640.9,0.28635349]
[1740168584146,0.31157986,641.89,640.91,0.28635349]
[1740168584352,0.31157986,641.89,640.92,0.28635349]
[1740168584550,0.31157986,641.89,640.9,0.28635349]
[1740168584747,0.31157986,641.89,640.91,0.28635349]
[1740168584953,0.31157986,641.89,640.9,0.28635349]
[1740168585153,0.31157986,641.89,640.92,0.28635349]
[1740168585350,0.31157986,641.89,640.89,1.209]
[1740168585555,0.31157986,641.89,640.9,0.28635978]
[1740168587054,0.31157986,641.89,640.91,0.28635883]
[1740168587249,0.31157986,641.89,640.92,0.28635883]
[1740168587448,0.31157986,641.89,640.9,0.28635883]
[1740168587655,0.31157986,641.89,640.91,0.28635883]
[1740168587858,0.31157986,641.89,640.92,0.28635883]
[1740168588056,0.31157986,641.89,640.9,0.28635883]
[1740168588252,0.31157986,641.89,640.91,0.28635883]
[1740168588455,0.31157986,641.89,640.89,1.209]
[1740168588656,0.31157986,641.89,640.9,0.28635492]
[1740168589051,3.44706657,642.38,640.9,0.28635492]
[1740168589357,3.25149769,642.37,640.9,0.28635492]
[1740168589557,3.25149769,642.36,640.9,0.28635492]
[1740168589758,3.25149769,642.35,640.9,0.28635492]
[1740168589959,3.25149769,642.34,640.9,0.28635492]
[1740168590158,1.25079136,642.33,640.91,0.28635531]
[1740168590458,3.25314594,642.32,640.92,0.28635531]
[1740168590656,3.25314594,642.32,640.9,0.28635531]
[1740168590855,3.25314594,642.32,640.91,0.28635531]
[1740168591060,2.61690445,642.31,640.9,0.28635531]
[1740168591262,1.25079136,642.3,640.91,0.28635531]
[1740168591455,1.25079136,642.3,640.9,0.28635531]
[1740168591656,1.25079136,642.3,640.91,0.28635531]
[1740168591861,2.61690445,642.29,640.9,0.28635531]
[1740168592064,1.25079136,642.28,640.91,0.28635531]
[1740168592261,1.25079136,642.28,640.9,0.28635531]
[1740168592463,1.25079136,642.28,640.91,0.28635531]
[1740168592759,1.068,642.27,640.92,0.28635531]
[1740168592964,5.32668328,642.26,640.9,0.28635531]
[1740168593164,3.25456495,642.25,640.91,0.28635531]
[1740168593365,3.25456495,642.24,640.9,0.28635531]
[1740168593565,1.25079136,642.23,640.91,0.28635531]
[1740168593759,1.25079136,642.23,640.92,0.28635531]
[1740168593960,1.25079136,642.23,640.93,0.28635531]
[1740168594156,2.61690445,642.22,640.94,0.28635531]
[1740168594363,1.25079136,642.21,640.95,0.28635531]
[1740168594560,1.25079136,642.21,640.9,0.28635531]
[1740168594866,1.25079136,642.21,640.91,0.28635531]
[1740168595066,1.00765592,642.2,640.92,0.28635531]
[1740168595269,1.25079136,642.19,640.93,0.28635531]
[1740168595467,1.00765592,642.2,640.94,0.28635531]
[1740168595666,1.00765592,642.2,640.95,0.28635531]
[1740168595867,1.00765592,642.18,640.9,0.28635531]
[1740168596062,1.00765592,642.18,640.91,0.28635531]
[1740168596367,1.00765592,642.18,640.92,0.28635531]
[1740168596562,1.00765592,642.18,640.93,0.28635531]
[1740168596762,1.00765592,642.18,640.89,1.209]
[1740168596763,2.62464109,642.26,640.94,0.28635531]
[1740168596965,1.25490072,642.25,640.95,0.28635531]
[1740168597166,1.25490072,642.25,640.89,1.209]
[1740168597167,1.25490072,642.24,640.9,0.28635531]
[1740168597366,1.25490072,642.23,640.91,0.28635531]
[1740168597567,1.25490072,642.22,640.92,0.28635531]
[1740168597767,1.25490072,642.22,640.89,1.209]
[1740168597768,1.25490072,642.21,640.9,0.28635531]
[1740168598066,2.62464109,642.23,640.89,1.209]
[1740168598067,1.25490072,642.2,640.91,0.28635531]
[1740168598266,1.25556703,642.19,640.9,0.28635531]
[1740168598463,1.00765592,642.2,640.9,0.28635531]
[1740168599067,2.62653079,642.26,640.9,0.28635531]
[1740168599367,1.25625956,642.25,640.89,1.209]
[1740168599568,1.25625956,642.24,640.9,0.28639096]
[1740168599760,1.25625956,642.23,640.9,0.28639096]
[1740168599968,1.25625956,642.22,640.9,0.28639096]
[1740168600268,1.00765592,642.22,640.9,0.28639096]
[1740168600464,1.25701029,642.21,640.9,0.28639096]
[1740168600664,1.00765592,642.22,640.9,0.28639096]
[1740168600870,1.2570346,642.21,640.9,0.28639096]
[1740168601065,1.00765592,642.26,640.9,0.28639096]
[1740168601267,1.25704329,642.25,640.9,0.28639096]
[1740168601470,1.00765592,642.2,640.9,0.28639096]
[1740168602069,1.00765592,642.26,640.9,0.28639096]
[1740168602264,1.25773952,642.25,640.9,0.28639096]
[1740168602466,3.27137435,642.24,640.9,0.28639096]
[1740168602667,1.25773952,642.23,640.9,0.28639096]
[1740168602869,2.26539544,642.22,640.9,0.28639096]
[1740168603066,1.25773952,642.21,640.9,0.28639096]
[1740168603464,2.62949016,642.22,640.9,0.28639096]
[1740168603465,1.25945819,642.2,640.9,0.28639096]
[1740168603670,1.25945819,642.19,640.91,0.28641821]
[1740168603866,1.25945819,642.18,640.9,0.28641821]
[1740168604170,1.25945819,642.17,640.91,0.28641821]
[1740168604366,1.2606237,642.16,640.92,0.28641821]
[1740168604573,1.2606237,642.15,640.93,0.28641821]
[1740168604767,1.2606237,642.14,640.94,0.28641821]
[1740168604972,1.2606237,642.14,640.89,1.209]
[1740168604973,1.2606237,642.13,640.9,0.28641821]
[1740168605172,1.00765592,642.14,640.91,0.28641821]
[1740168605473,1.00765592,642.14,640.92,0.28641821]
[1740168605774,1.26224281,642.13,640.93,0.28641821]
[1740168605970,1.26224281,642.12,640.94,0.28641821]
[1740168606169,1.00765592,642.12,640.95,0.28641821]
[1740168606367,1.26397054,642.11,640.9,0.28641821]
[1740168606571,1.26397054,642.1,640.9,0.28641821]
[1740168606773,1.26397054,642.09,640.9,0.28641821]
[1740168607273,1.26397054,642.08,640.89,1.209]
[1740168607468,1.26397054,642.07,640.9,0.28651724]
[1740168608073,2.63676559,642.06,640.9,0.28651724]
[1740168608277,1.26397054,642.05,640.89,1.209]
[1740168608475,1.26397054,642.05,640.9,0.28650586]
[1740168608973,3.28647375,642.05,640.89,1.209]
[1740168609276,2.46984715,642.04,640.89,1.209]
[1740168609470,5.03121065,642.03,640.89,1.209]
[1740168609679,1.00765592,642.04,640.89,1.209]
[1740168609680,6.12294498,642.02,640.9,0.28655591]
[1740168609871,1.126,642.07,640.89,1.209]
[1740168609872,6.12294498,642.01,640.89,1.209]
[1740168610176,9.38330884,642.0,640.89,1.209]
[1740168610371,6.12297998,641.99,640.89,1.209]
[1740168610573,9.38330884,641.98,640.89,1.209]
[1740168610780,6.12297998,641.97,640.89,1.209]
[1740168610971,5.65505884,641.96,640.89,1.209]
[1740168611174,5.03121065,641.95,640.89,1.209]
[1740168611372,5.0306791,641.94,640.89,1.209]
[1740168611576,3.56895028,641.93,640.89,1.209]
[1740168611878,1.126,642.07,640.89,1.209]
[1740168611879,1.26369944,641.92,640.89,1.209]
[1740168612077,1.26369944,641.91,640.89,1.209]
[1740168612285,3.26032886,641.94,640.89,1.209]
[1740168612584,1.00765592,641.9,640.89,1.209]
[1740168612774,1.00765592,641.93,640.89,1.209]
[1740168612974,1.26262948,641.92,640.89,1.209]
[1740168613179,1.00765592,641.93,640.89,1.209]
[1740168613376,1.26264062,641.92,640.89,1.209]
[1740168613579,1.00765592,641.93,640.89,1.209]
[1740168613781,1.00765592,641.91,640.89,1.209]
[1740168614486,1.00765592,641.91,640.9,0.28653858]
[1740168615876,1.26169082,641.9,640.9,0.28653858]
[1740168616082,1.26171316,641.89,640.89,1.209]
[1740168616277,1.26171316,641.88,640.89,1.209]
[1740168616581,1.26171316,641.87,640.89,1.209]
[1740168616778,1.26171316,641.86,640.89,1.209]
[1740168617083,1.26171316,641.85,640.89,1.209]
[1740168617280,1.26132047,641.84,640.89,1.209]
[1740168617480,3.89397421,641.83,640.89,1.209]
[1740168617680,1.26132047,641.82,640.89,1.209]
[1740168617977,2.63265374,641.82,640.89,1.209]
[1740168618377,2.63265374,641.82,640.9,0.28655476]
[1740168618583,2.63265374,641.82,640.89,1.209]
[1740168618783,2.63265374,641.82,640.9,0.28654988]
[1740168618982,2.63265374,641.91,640.9,0.28654988]
[1740168619784,1.00765592,641.91,640.9,0.28654988]
[1740168622879,1.00765592,641.91,640.91,0.28653674]
[1740168623080,1.00765592,641.91,640.92,0.28653674]
[1740168623285,1.00765592,641.91,640.93,0.28653674]
[1740168623487,1.00765592,641.91,640.9,0.28653674]
[1740168623686,1.00765592,641.91,640.91,0.28653674]
[1740168623885,1.00765592,641.91,640.92,0.28653674]
[1740168624084,1.00765592,641.91,640.89,1.209]
[1740168624085,1.00765592,641.91,640.93,0.28653674]
[1740168624285,1.00765592,641.91,640.94,0.28653674]
[1740168624489,1.00765592,641.91,640.95,0.28653673]
[1740168624780,1.00765592,641.91,640.96,0.28653673]
[1740168624987,1.00765592,641.91,640.97,0.28653673]
[1740168625187,1.00765592,641.91,640.9,0.28653673]
[1740168625486,1.00765592,641.91,640.91,0.28653673]
[1740168625680,1.00765592,641.91,640.89,1.209]
[1740168625681,1.00765592,641.91,640.92,0.28653673]
[1740168625884,1.00765592,641.91,640.9,0.28653673]
[1740168626080,1.00765592,641.91,640.91,0.28653673]
[1740168626283,2.63197478,642.06,640.9,0.28653673]
[1740168626483,2.63197478,642.06,640.89,1.209]
[1740168626484,2.63197478,642.06,640.91,0.28653673]
[1740168626684,1.26044317,642.05,640.9,0.28653673]
[1740168626884,0.31151192,642.03,640.91,0.28653673]
[1740168627084,0.31151192,642.03,640.92,0.28653673]
[1740168627281,1.26068913,642.02,640.9,0.28653673]
[1740168627482,0.31152647,642.0,640.89,1.209]
[1740168627787,1.26068913,641.99,640.89,1.209]
[1740168627987,0.31154103,641.97,640.89,1.209]
[1740168628188,1.26068913,641.96,640.89,1.209]
[1740168628390,1.45837268,641.95,640.89,1.209]
[1740168628590,0.31156045,641.93,640.89,1.209]
[1740168628887,1.00765592,641.92,640.89,1.209]
[1740168629086,0.31157501,641.9,640.89,1.209]
[1740168629284,1.57242039,641.9,640.89,1.209]
[1740168629487,1.26084538,641.89,640.89,1.209]
[1740168629680,1.26084538,641.89,640.33,1.40620362]
[1740168629681,0.31158957,641.87,640.33,1.40620362]
[1740168629885,1.26084538,641.86,640.34,0.28659303]
[1740168630086,3.27781107,641.85,640.34,0.28659303]
[1740168630282,5.01945073,641.84,640.35,0.28659303]
[1740168630482,4.73603399,641.83,639.48,0.28659303]
[1740168630685,4.73603399,641.82,639.5,0.31274433]
[1740168630887,4.73603399,641.81,639.51,0.28663598]
[1740168631087,3.27781107,641.8,639.52,0.28663598]
[1740168631288,3.27781107,641.79,639.53,0.28663598]
[1740168631591,3.27781107,641.78,639.54,0.28663598]
[1740168631892,5.90979538,641.77,639.55,0.28663598]
[1740168632091,3.27722491,641.76,639.9,1.40620362]
[1740168632283,3.27722491,641.75,639.91,0.28663598]
[1740168632486,5.64223198,641.74,639.92,0.28668728]
[1740168632684,6.11034454,641.73,639.93,0.28668728]
[1740168632884,6.11034454,641.72,639.94,0.28668728]
[1740168633189,6.11034454,641.71,639.95,0.28668728]
[1740168633385,5.64226055,641.7,639.96,0.28671594]
[1740168633586,5.01815396,641.69,639.97,0.28671594]
[1740168633794,3.25668614,641.7,639.55,1.6297921]
[1740168633795,5.01815396,641.68,639.98,0.28671594]
[1740168633991,3.27722491,641.67,639.82,1.40620362]
[1740168634191,3.27722491,641.66,639.83,0.28668138]
[1740168634493,0.31170126,641.64,639.84,0.28668138]
[1740168634791,0.28348491,641.63,639.85,0.28668138]
[1740168635092,5.01759823,641.63,639.86,0.28668138]
[1740168635292,5.01759823,641.62,639.87,0.28668138]
[1740168635491,5.01759823,641.61,639.88,0.28668138]
[1740168635791,5.01759823,641.6,639.89,0.28668138]
[1740168635992,3.27722491,641.59,639.9,0.28668138]
[1740168636184,3.27722491,641.58,639.91,0.28668138]
[1740168636386,1.26084538,641.57,639.92,0.28668138]
[1740168636590,1.26084538,641.56,639.93,0.28668138]
[1740168636785,1.26084538,641.55,639.94,0.28668138]
[1740168636985,1.26084538,641.54,639.95,0.28668138]
[1740168637186,2.63259072,641.57,639.96,0.28668138]
[1740168637187,1.26084538,641.53,639.96,0.28668138]
[1740168637388,1.26084538,641.52,639.97,0.28668138]
[1740168637591,0.31176929,641.5,639.98,0.28668138]
[1740168637787,0.31176929,641.5,639.87,1.151]
[1740168637788,0.31176929,641.5,639.99,0.28668138]
[1740168638093,0.31176929,641.5,640.0,0.28668138]
[1740168638294,1.00765592,641.49,640.01,0.28668138]
[1740168638594,1.00765592,641.49,640.02,0.28668138]
[1740168638789,1.00765592,641.49,639.87,1.151]
[1740168638988,1.00765592,641.49,639.88,0.28671989]
[1740168639192,1.00765592,641.49,639.87,1.151]
[1740168639193,1.00765592,641.49,639.89,0.28671989]
[1740168639494,1.00765592,641.49,639.9,0.28671989]
[1740168639694,1.00765592,641.49,639.91,0.28671989]
[1740168639890,0.31178387,641.47,639.92,0.28671989]
[1740168640088,0.31178387,641.47,639.93,0.28671989]
[1740168640293,0.31178387,641.47,639.94,0.28671989]
[1740168640494,0.31178387,641.47,639.95,0.28671989]
[1740168640693,0.31178387,641.47,639.96,0.28671989]
[1740168640994,0.31178387,641.47,639.97,0.28671989]
[1740168641192,0.31178387,641.47,639.98,0.28671989]
[1740168641394,0.31178387,641.47,639.99,0.28671989]
[1740168641594,0.31178387,641.47,640.0,0.28671989]
[1740168641788,0.31178387,641.47,640.01,0.28671989]
[1740168641990,0.31178387,641.47,639.87,1.151]
[1740168642190,0.31178387,641.47,639.88,0.28666065]
[1740168642389,0.31178387,641.47,639.89,0.28666065]
[1740168642594,0.31178387,641.47,639.9,0.28667787]
[1740168642991,0.31178387,641.47,639.91,0.28667787]
[1740168643199,0.31178387,641.47,639.92,0.28667787]
[1740168643394,0.31178387,641.47,639.93,0.28667787]
[1740168643595,0.31178387,641.47,639.94,0.28668027]
[1740168643795,0.31178387,641.47,639.95,0.28668027]
[1740168643995,0.31178387,641.47,639.96,0.28668027]
[1740168644193,0.31178387,641.47,639.97,0.28668027]
[1740168644395,0.31178387,641.47,639.98,0.28668027]
[1740168644594,0.31178387,641.47,639.99,0.28668027]
[1740168644795,0.31178387,641.47,640.0,0.28668027]
[1740168644999,0.31178387,641.47,640.01,0.28668027]
[1740168645301,0.31178387,641.47,639.9,1.40620362]
[1740168645502,0.31178387,641.47,639.91,0.28667991]
[1740168645701,0.31178387,641.47,639.92,0.28667991]
[1740168645900,0.31178387,641.47,639.93,0.28667991]
[1740168646099,0.31178387,641.47,639.91,1.40620362]
[1740168646100,0.31178387,641.47,639.94,0.28667991]
[1740168646300,0.31178387,641.47,639.95,0.28667991]
[1740168646501,0.31178387,641.47,639.96,0.28667991]
[1740168646701,0.31178387,641.47,639.97,0.28667991]
[1740168646898,0.31178387,641.47,639.98,0.28668135]
[1740168647104,0.31178387,641.47,639.99,0.28668135]
[1740168647298,0.31178387,641.47,640.0,0.28668135]
[1740168647502,0.31178387,641.47,640.01,0.28668135]
[1740168647699,0.31178387,641.47,640.02,0.28668135]
[1740168648007,0.31178387,641.47,639.9,0.31254883]
[1740168648008,0.31178387,641.47,640.03,0.28668135]
[1740168648208,0.31178387,641.47,639.91,0.28668135]
[1740168648409,0.31178387,641.47,639.92,0.28668135]
[1740168648604,0.31178387,641.47,639.93,0.28668135]
[1740168648804,0.31178387,641.47,639.94,0.28668135]
[1740168649000,0.31178387,641.47,639.95,0.28668135]
[1740168649206,1.178,641.46,639.96,0.28668135]
[1740168649504,0.31179845,641.44,639.97,0.28668135]
[1740168649705,0.31179845,641.44,639.98,0.28668135]
[1740168649905,0.31179845,641.44,639.9,0.31254883]
[1740168650108,0.31179845,641.44,639.91,0.28668339]
[1740168650309,0.31179845,641.44,639.92,0.28668339]
[1740168650505,0.31179845,641.44,639.9,0.31254883]
[1740168650506,0.31179845,641.44,639.93,0.28668339]
[1740168650701,0.31179845,641.44,639.94,0.28668339]
[1740168650903,0.31179845,641.44,639.95,0.28668339]
[1740168651106,0.31179845,641.44,639.96,0.28668339]
[1740168651304,0.31179845,641.44,639.97,0.28668339]
[1740168651501,0.31179845,641.44,639.9,0.31254883]
[1740168651705,0.31179845,641.44,639.91,0.28666665]
[1740168651901,0.31179845,641.44,639.92,0.28666665]
[1740168652205,0.31179845,641.44,639.93,0.28666665]
[1740168652507,0.31179845,641.44,639.94,0.28666665]
[1740168652808,0.31179845,641.44,639.95,0.28666665]
[1740168653008,0.31179845,641.44,640.03,1.40620362]
[1740168653210,0.31179845,641.44,640.04,0.28666665]
[1740168653405,0.31179845,641.44,640.05,0.28666665]
[1740168653610,0.31179845,641.44,640.06,0.28666665]
[1740168653808,0.31179845,641.44,640.07,0.59913247]
[1740168654010,0.31179845,641.44,640.08,0.28666665]
[1740168654210,0.31179845,641.44,640.09,0.59912271]
[1740168654411,0.31179845,641.44,640.1,0.28666665]
[1740168654606,0.31179845,641.44,640.09,0.31245606]
[1740168654912,0.31179845,641.44,640.27,1.40620362]
[1740168655210,0.31179845,641.44,640.28,0.28659352]
[1740168656206,0.31179845,641.44,640.27,1.40620362]
[1740168656408,0.31179845,641.44,640.28,0.28661115]
[1740168656810,0.31179845,641.44,640.29,0.28661115]
[1740168657012,0.31179845,641.44,640.3,0.28661115]
[1740168657206,0.31179845,641.44,640.15,0.28661115]
[1740168657409,0.31179845,641.44,640.16,0.28661115]
[1740168657911,0.31179845,641.44,640.17,0.28661115]
[1740168658116,0.31179845,641.44,640.18,0.28661115]
[1740168658314,0.31179845,641.44,640.19,0.28661115]
[1740168658612,0.31179845,641.44,640.2,0.28661115]
[1740168658912,0.31179845,641.44,640.22,1.40620362]
[1740168659110,0.31179845,641.44,640.23,0.28661115]
[1740168659511,0.31179845,641.44,640.24,0.28660393]
[1740168659712,0.31179845,641.44,640.25,0.28660393]
[1740168659913,0.31179845,641.44,640.26,0.28660393]
[1740168660113,0.31179845,641.44,640.23,0.28660393]
[1740168660413,0.31179845,641.44,640.24,0.28660393]
[1740168660613,0.31179845,641.44,640.23,0.28660393]
[1740168660815,0.31179845,641.44,640.24,0.28660393]
[1740168661117,0.31179845,641.44,640.27,1.40620362]
[1740168661316,0.31179845,641.44,640.28,0.28669065]
[1740168662215,0.31179845,641.44,640.29,0.28670893]
[1740168662412,0.31179845,641.44,640.3,0.28670893]
[1740168662609,0.31179845,641.44,640.31,0.28670893]
[1740168662810,0.31179845,641.44,640.09,0.31245606]
[1740168662811,0.31179845,641.44,640.32,0.28670893]
[1740168663116,0.31179845,641.44,640.33,0.28670893]
[1740168663317,0.31179845,641.44,640.34,0.28670893]
[1740168663518,0.31179845,641.44,640.1,0.28670893]
[1740168663818,0.31179845,641.44,640.11,0.28670893]
[1740168664118,0.31179845,641.44,640.12,0.28670893]
[1740168664317,0.31179845,641.44,640.09,0.31245606]
[1740168664318,0.31179845,641.44,640.1,0.28670893]
[1740168664619,0.31179845,641.44,640.11,0.28670893]
[1740168664813,0.31179845,641.44,640.1,0.28670893]
[1740168665015,0.31179845,641.44,640.11,0.28670893]
[1740168665216,0.31179845,641.44,640.1,0.28670893]
[1740168666924,0.31179845,641.44,640.11,0.59905879]
[1740168667121,0.31179845,641.44,640.12,0.2866125]
[1740168668311,0.31179845,641.44,640.11,0.31244629]
[1740168668512,0.31179845,641.44,640.12,0.28660765]
[1740168669416,0.31179845,641.44,640.13,0.28660765]
[1740168669621,0.31179845,641.44,640.14,0.28660765]
[1740168669817,0.31179845,641.44,640.15,0.28660765]
[1740168670030,0.31179845,641.44,640.16,0.28660065]
[1740168670215,0.31179845,641.44,640.17,0.28660065]
[1740168670420,0.31179845,641.44,640.18,0.28660065]
[1740168670617,0.31179845,641.44,640.19,0.28660065]
[1740168670820,0.31179845,641.44,640.2,0.28660065]
[1740168671021,0.31179845,641.44,640.42,1.40620362]
[1740168671216,0.31179845,641.44,640.43,0.28660065]
[1740168672818,0.31179845,641.44,640.44,0.28660065]
[1740168673032,0.31179845,641.44,640.38,0.28660065]
[1740168673324,0.31179845,641.44,640.39,0.28669228]
[1740168673518,0.31179845,641.44,640.38,0.28669228]
[1740168673723,0.31179845,641.44,640.39,0.28669228]
[1740168673920,0.31179845,641.44,640.37,1.40620362]
[1740168673921,0.31179845,641.44,640.4,0.28669228]
[1740168674123,0.31179845,641.44,640.38,0.28669228]
[1740168674319,0.31179845,641.44,640.39,0.28669228]
[1740168674625,0.31179845,641.44,640.4,0.28669228]
[1740168674820,0.31179845,641.44,640.41,0.28669228]
[1740168675022,0.31179845,641.44,640.42,0.28669228]
[1740168675223,0.31179845,641.44,640.43,0.28669228]
[1740168675424,0.31179845,641.44,640.38,0.28669228]
[1740168675625,0.31179845,641.44,640.39,0.28669228]
[1740168675822,0.31179845,641.44,640.4,0.28669228]
[1740168676024,0.31179845,641.44,640.41,0.28669228]
[1740168676226,0.31179845,641.44,640.13,1.40620362]